bitfinex/quotes_BTCUSD_20251010
["timestamp","ask_amount","ask_price","bid_price","bid_amount"]
[1760086964640,4.15129358,121740.0,121730.0,0.43380429]
[1760086964848,4.38070858,121740.0,121730.0,0.43380429]
[1760086965060,4.39612858,121740.0,121730.0,0.43380429]
[1760086965245,4.38070858,121740.0,121730.0,0.43380429]
[1760086965496,4.40068058,121740.0,121730.0,0.43380429]
[1760086965722,3.72710467,121740.0,121730.0,0.43380429]
[1760086965941,3.72421167,121740.0,121730.0,0.43380429]
[1760086966156,3.72390467,121740.0,121730.0,0.43380429]
[1760086966379,3.70340467,121740.0,121730.0,0.43380429]
[1760086966605,3.81318767,121740.0,121730.0,0.43380429]
[1760086966881,1.97414367,121740.0,121730.0,0.43380429]
[1760086967099,3.81710467,121740.0,121730.0,0.43380429]
[1760086967331,3.33456967,121740.0,121730.0,0.43380429]
[1760086967559,3.33456847,121740.0,121730.0,0.43380429]
[1760086969149,3.32660948,121740.0,121730.0,0.43380429]
[1760086969604,3.30887312,121740.0,121730.0,0.43380429]
[1760086970783,2.88064047,121740.0,121730.0,0.43380429]
[1760086971217,2.88752212,121740.0,121730.0,0.43380429]
[1760086973499,1.94844712,121740.0,121730.0,0.43380429]
[1760086973682,6.94844712,121740.0,121730.0,0.43380429]
[1760086974130,6.95640611,121740.0,121730.0,0.43380429]
[1760086976103,1.95640611,121740.0,121730.0,0.43380429]
[1760086976334,6.98655801,121740.0,121730.0,0.42190997]
[1760086976550,6.98655801,121740.0,121730.0,0.40234104]
[1760086976551,7.4679608,121740.0,121730.0,0.40234104]
[1760086976766,2.492662,121740.0,121730.0,0.40234104]
[1760086976983,7.0821764,121740.0,121730.0,0.40234104]
[1760086977195,7.08217647,121740.0,121730.0,0.40234104]
[1760086977398,2.08217647,121740.0,121730.0,0.40234104]
[1760086977614,6.72900633,121740.0,121730.0,0.40234104]
[1760086977819,6.71155807,121740.0,121730.0,0.40234104]
[1760086978026,6.7115577,121740.0,121730.0,0.40234104]
[1760086978267,6.28332505,121740.0,121730.0,0.40234104]
[1760086978459,1.7115577,121740.0,121730.0,0.40234104]
[1760086978593,6.7115577,121740.0,121730.0,0.40234104]
[1760086979209,1.7115577,121740.0,121730.0,0.40234104]
[1760086979405,6.7115577,121740.0,121730.0,0.40234104]
[1760086979610,1.7115577,121740.0,121730.0,0.40234104]
[1760086979876,5.69678114,121740.0,121730.0,0.40234104]
[1760086980006,5.60336215,121740.0,121730.0,0.40234104]
[1760086980397,1.65640615,121740.0,121730.0,0.40234104]
[1760086980613,6.19831215,121740.0,121730.0,0.40234104]
[1760086981060,5.52399715,121740.0,121730.0,0.40234104]
[1760086981277,1.65640748,121740.0,121730.0,0.40234104]
[1760086981488,5.00611148,121740.0,121730.0,0.40234104]
[1760086981704,5.20901671,121740.0,121730.0,0.40234104]
[1760086981914,1.68110571,121740.0,121730.0,0.40234104]
[1760086982200,5.20901671,121740.0,121730.0,0.40234104]
[1760086982415,1.68110571,121740.0,121730.0,0.40234104]
[1760086982635,3.68177571,121740.0,121730.0,0.40234104]
[1760086982856,3.68177571,121740.0,121730.0,0.42089104]
[1760086982857,1.85636571,121740.0,121730.0,0.42089104]
[1760086983066,1.79456571,121740.0,121730.0,0.40234104]
[1760086985015,1.78660672,121740.0,121730.0,0.40234104]
[1760086988236,2.23560672,121740.0,121730.0,0.40234104]
[1760086993634,2.12214672,121740.0,121730.0,0.43471104]
[1760086993864,1.24491407,121740.0,121730.0,0.43471104]
[1760086994084,0.94491407,121740.0,121730.0,0.46258104]
[1760086994309,0.94491407,121740.0,121730.0,0.62687907]
[1760086994535,0.00970223,121740.0,121730.0,0.62687907]
[1760086994975,0.1737691,121740.0,121730.0,0.62687907]
[1760086995421,0.5137691,121740.0,121730.0,0.62687907]
[1760086996874,0.5137691,121740.0,121730.0,0.46258104]
[1760086997308,1.24200175,121740.0,121730.0,0.43471104]
[1760086997518,1.24200175,121740.0,121730.0,0.40234104]
[1760086997729,1.32512381,121740.0,121730.0,0.40234104]
[1760086998146,1.32512381,121740.0,121730.0,0.42051104]
[1760086999189,1.32512381,121740.0,121730.0,0.40234104]
[1760087000023,1.62512381,121740.0,121730.0,0.40234104]
[1760087001891,1.58243662,121740.0,121730.0,0.40234104]
[1760087005382,1.58243662,121740.0,121730.0,0.59900907]
[1760087005383,1.15420397,121740.0,121730.0,0.59900907]
[1760087005594,0.17246195,121750.0,121730.0,0.62687907]
[1760087005808,0.89558401,121750.0,121740.0,0.04207]
[1760087006044,0.89558401,121750.0,121740.0,0.06177707]
[1760087006263,0.71607222,121760.0,121740.0,0.22606161]
[1760087006489,0.16427104,121750.0,121740.0,0.22452454]
[1760087007334,0.17265943,121750.0,121740.0,0.22452454]
[1760087007540,0.17465943,121750.0,121740.0,0.22452454]
[1760087007753,0.16527104,121750.0,121740.0,0.22452454]
[1760087008463,0.16627104,121750.0,121740.0,0.22452454]
[1760087009555,0.59450369,121750.0,121740.0,0.06024]
[1760087009779,0.59450369,121750.0,121740.0,0.03237]
[1760087009992,0.16428454,121740.0,121730.0,0.41449145]
[1760087010199,0.59251719,121740.0,121730.0,0.43266145]
[1760087011266,0.59451719,121740.0,121730.0,0.43266145]
[1760087011687,0.89451719,121740.0,121730.0,0.43266145]
[1760087011899,0.97763925,121740.0,121730.0,0.40029145]
[1760087012114,1.27763925,121740.0,121730.0,0.40029145]
[1760087012327,1.27763925,121740.0,121730.0,0.40234104]
[1760087013846,1.27763925,121740.0,121730.0,0.43480104]
[1760087015321,0.8494066,121740.0,121730.0,0.43480104]
[1760087015530,1.27763925,121740.0,121730.0,0.43480104]
[1760087016153,0.97763925,121740.0,121730.0,0.43480104]
[1760087017244,0.5494066,121740.0,121730.0,0.43480104]
[1760087017450,0.97763925,121740.0,121730.0,0.43480104]
[1760087018402,0.81335471,121740.0,121730.0,0.59909907]
[1760087018652,0.16628454,121740.0,121730.0,0.62592907]
[1760087018893,0.002,121740.0,121730.0,0.62592907]
[1760087020378,0.16628454,121740.0,121730.0,0.62592907]
[1760087021339,0.002,121740.0,121730.0,0.62592907]
[1760087022324,0.002,121740.0,121730.0,1.05416172]
[1760087022561,0.002,121740.0,121730.0,0.62592907]
[1760087026740,0.16628454,121740.0,121730.0,0.59909907]
[1760087027395,0.16628454,121740.0,121730.0,0.62556907]
[1760087027670,0.4873744,121740.0,121730.0,0.62556907]
[1760087028772,0.4873744,121740.0,121730.0,0.43480104]
[1760087029853,0.4873744,121740.0,121730.0,0.46127104]
[1760087031156,0.4873744,121740.0,121730.0,0.62556907]
[1760087031411,0.002,121740.0,121730.0,0.62556907]
[1760087031631,0.32308986,121740.0,121730.0,0.62556907]
[1760087032479,0.4873744,121740.0,121730.0,0.62556907]
[1760087033895,0.4873744,121740.0,121730.0,0.59909907]
[1760087034111,0.4873744,121740.0,121730.0,0.62556907]
[1760087035999,0.16628454,121740.0,121730.0,0.62556907]
[1760087036210,0.4873744,121740.0,121730.0,0.62556907]
[1760087036855,0.16628454,121740.0,121730.0,0.62556907]
[1760087037069,0.4873744,121740.0,121730.0,0.62556907]
[1760087041021,0.80846426,121740.0,121730.0,0.62556907]
[1760087041455,0.4873744,121740.0,121730.0,0.43480104]
[1760087041667,0.80846426,121740.0,121730.0,0.43480104]
[1760087041853,0.83315688,121740.0,121730.0,0.43480104]
[1760087042751,0.83315688,121740.0,121730.0,0.59909907]
[1760087042964,0.83315688,121740.0,121730.0,0.62556907]
[1760087043447,0.83315688,121740.0,121730.0,0.46127104]
[1760087043649,0.83315688,121740.0,121730.0,0.43480104]
[1760087045613,1.13315688,121740.0,121730.0,0.43480104]
[1760087046915,1.13315688,121740.0,121730.0,0.46155104]
[1760087047204,1.13315688,121740.0,121730.0,0.43480104]
[1760087048387,1.13315688,121740.0,121730.0,0.59909907]
[1760087048601,1.13315688,121740.0,121730.0,0.43480104]
[1760087049834,0.81206702,121740.0,121730.0,0.43480104]
[1760087050170,1.13315688,121740.0,121730.0,0.43480104]
[1760087051576,1.13315688,121740.0,121730.0,0.59909907]
[1760087052001,0.19097716,121740.0,121730.0,0.62584907]
[1760087052215,0.51206702,121740.0,121730.0,0.62584907]
[1760087052435,0.34778248,121740.0,121730.0,0.62584907]
[1760087052648,0.51206702,121740.0,121730.0,0.62584907]
[1760087053073,0.19097716,121740.0,121730.0,0.62584907]
[1760087053716,0.02669262,121740.0,121730.0,0.62584907]
[1760087054144,0.002,121740.0,121730.0,1.02693573]
[1760087055070,0.002,121740.0,121730.0,0.94693893]
[1760087060426,0.4873744,121740.0,121730.0,0.62584907]
[1760087061267,0.4853744,121740.0,121730.0,0.62584907]
[1760087065182,1.10646426,121740.0,121730.0,0.40234104]
[1760087065670,1.13115713,121740.0,121730.0,0.40234104]
[1760087065865,1.51427919,121740.0,121730.0,0.40234104]
[1760087066940,1.52198427,121740.0,121730.0,0.40234104]
[1760087067157,1.51427919,121740.0,121730.0,0.40234104]
[1760087067375,1.31188686,121740.0,121730.0,0.40234104]
[1760087069198,0.87209947,121740.0,121730.0,0.40234104]
[1760087069403,1.51427919,121740.0,121730.0,0.40234104]
[1760087072335,0.87209947,121740.0,121730.0,0.40234104]
[1760087072553,1.51427919,121740.0,121730.0,0.40234104]
[1760087078005,0.87209947,121740.0,121730.0,0.42188104]
[1760087078210,0.57209947,121740.0,121730.0,0.46264104]
[1760087078971,0.57209947,121740.0,121730.0,0.94802893]
[1760087081921,0.57209947,121740.0,121730.0,0.46264104]
[1760087082095,0.57209947,121740.0,121730.0,0.43598104]
[1760087085613,0.89318933,121740.0,121730.0,0.43598104]
[1760087086525,1.19318933,121740.0,121730.0,0.43598104]
[1760087087613,1.30024536,121740.0,121730.0,0.40234104]
[1760087091735,1.30024536,121740.0,121730.0,0.43414104]
[1760087093134,1.30024536,121740.0,121730.0,0.40234104]
[1760087095142,1.30795236,121740.0,121730.0,0.40234104]
[1760087097586,2.44481136,121740.0,121730.0,0.40234104]
[1760087097803,2.8002257,121740.0,121730.0,0.40234104]
[1760087098451,2.80022441,121740.0,121730.0,0.40234104]
[1760087100472,6.69149401,121740.0,121730.0,0.40234104]
[1760087101131,6.70924988,121740.0,121730.0,0.40234104]
[1760087101349,6.69149401,121740.0,121730.0,0.40234104]
[1760087101588,1.69149401,121740.0,121730.0,0.40234104]
[1760087101790,6.69149401,121740.0,121730.0,0.40234104]
[1760087102642,1.69149401,121740.0,121730.0,0.40234104]
[1760087102855,6.69149401,121740.0,121730.0,0.40234104]
[1760087103277,6.72164591,121740.0,121730.0,0.40234104]
[1760087104124,1.7466459,121740.0,121730.0,0.40234104]
[1760087104309,6.7466459,121740.0,121730.0,0.40234104]
[1760087105276,1.7466459,121740.0,121730.0,0.40234104]
[1760087105488,6.7466459,121740.0,121730.0,0.40234104]
[1760087106531,1.7466459,121740.0,121730.0,0.40234104]
[1760087106964,6.7466459,121740.0,121730.0,0.40234104]
[1760087107906,1.7466459,121740.0,121730.0,0.40234104]
[1760087108092,6.7466459,121740.0,121730.0,0.40234104]
[1760087108853,6.84664589,121740.0,121730.0,0.40234104]
[1760087109805,1.84664589,121740.0,121730.0,0.40234104]
[1760087110016,6.84664589,121740.0,121730.0,0.40234104]
[1760087111091,1.84664589,121740.0,121730.0,0.40234104]
[1760087111300,2.09308589,121740.0,121730.0,0.40234104]
[1760087111480,6.66494,121740.0,121730.0,0.40234104]
[1760087111749,7.09308589,121740.0,121730.0,0.40234104]
[1760087111957,7.06495729,121740.0,121730.0,0.40234104]
[1760087112361,2.06495729,121740.0,121730.0,0.40234104]
[1760087112561,7.06495729,121740.0,121730.0,0.40234104]
[1760087113139,6.7399573,121740.0,121730.0,0.40234104]
[1760087113341,2.0399573,121740.0,121730.0,0.40234104]
[1760087113546,6.7399573,121740.0,121730.0,0.40234104]
[1760087113745,2.0098054,121740.0,121730.0,0.40234104]
[1760087113961,3.8366384,121740.0,121730.0,0.40234104]
[1760087114280,4.8220064,121740.0,121730.0,0.40234104]
[1760087114484,5.8747904,121740.0,121730.0,0.40234104]
[1760087114675,2.0098054,121740.0,121730.0,0.40234104]
[1760087114909,6.2427654,121740.0,121730.0,0.40234104]
[1760087115120,7.0098054,121740.0,121730.0,0.40234104]
[1760087115402,7.0399573,121740.0,121730.0,0.40234104]
[1760087115611,7.06803047,121740.0,121730.0,0.02884345]
[1760087115824,7.06803047,121740.0,121700.0,0.0004]
[1760087115825,1.10432503,121710.0,121700.0,0.0004]
[1760087116031,1.10432503,121710.0,121700.0,0.00055077]
[1760087116032,1.61559298,121710.0,121700.0,0.00055077]
[1760087116577,1.64029512,121710.0,121700.0,0.00055077]
[1760087118521,1.34029512,121710.0,121700.0,0.00055077]
[1760087118743,0.91214923,121710.0,121700.0,0.00055077]
[1760087119029,1.34129512,121710.0,121700.0,0.00055077]
[1760087119483,0.91314923,121710.0,121700.0,0.00055077]
[1760087119919,1.34129512,121710.0,121700.0,0.00055077]
[1760087120141,0.91314923,121710.0,121700.0,0.00055077]
[1760087120368,1.34129512,121710.0,121700.0,0.00055077]
[1760087120599,4.79814812,121710.0,121700.0,0.00055077]
[1760087121247,4.86097516,121710.0,121700.0,0.00055077]
[1760087121457,4.43282927,121710.0,121700.0,0.00055077]
[1760087121676,4.86097516,121710.0,121700.0,0.0020886]
[1760087125721,4.10738416,121710.0,121700.0,0.0020886]
[1760087125944,3.33822116,121710.0,121700.0,0.0020886]
[1760087126709,2.91007527,121710.0,121700.0,0.0020886]
[1760087126865,3.33822116,121710.0,121700.0,0.0020886]
[1760087127066,2.91007527,121710.0,121700.0,0.0020886]
[1760087127344,3.33822116,121710.0,121700.0,0.0020886]
[1760087127608,3.31090316,121710.0,121700.0,0.0020886]
[1760087129324,3.32630976,121710.0,121700.0,0.0020886]
[1760087129985,1.85670276,121710.0,121700.0,0.0020886]
[1760087130201,0.97597627,121710.0,121700.0,0.0209586]
[1760087130459,0.97597627,121710.0,121700.0,0.0623086]
[1760087130679,0.97597627,121710.0,121700.0,0.0346186]
[1760087131983,0.97597627,121710.0,121700.0,0.0157486]
[1760087132421,0.97597627,121710.0,121700.0,0.0346186]
[1760087133754,0.02570214,121710.0,121700.0,0.50867834]
[1760087133973,0.001,121710.0,121700.0,0.65658302]
[1760087137030,0.001,121710.0,121700.0,0.22843713]
[1760087137262,0.001,121710.0,121700.0,0.65658302]
[1760087140388,0.001,121710.0,121700.0,0.22843713]
[1760087140612,0.001,121710.0,121700.0,0.65658302]
[1760087143930,0.001,121710.0,121700.0,0.73657982]
[1760087144589,0.001,121710.0,121700.0,0.81970188]
[1760087144807,0.001,121710.0,121700.0,0.84439564]
[1760087145887,0.001,121710.0,121700.0,0.76439884]
[1760087147279,0.001,121710.0,121700.0,1.13455074]
[1760087149537,0.001,121710.0,121700.0,1.6694755]
[1760087150361,0.001,121710.0,121700.0,1.34845195]
[1760087152230,0.001,121710.0,121700.0,1.6694755]
[1760087152788,0.001,121710.0,121700.0,1.7494723]
[1760087155939,0.001,121710.0,121700.0,1.42844875]
[1760087156176,0.001,121710.0,121700.0,1.34845195]
[1760087158685,0.001,121710.0,121700.0,1.34845195]
[1760087161064,0.001,121710.0,121700.0,1.6694755]
[1760087163065,0.16564189,121750.0,121740.0,0.16428454]
[1760087163289,0.48666544,121750.0,121740.0,0.03258]
[1760087163506,0.48666544,121750.0,121740.0,0.05999]
[1760087164174,0.54666544,121750.0,121740.0,0.05999]
[1760087164392,0.49535486,121750.0,121740.0,0.06014077]
[1760087165270,0.49535486,121750.0,121740.0,0.03273077]
[1760087165271,0.57847692,121750.0,121740.0,0.03273077]
[1760087165487,0.87847692,121750.0,121740.0,0.03273077]
[1760087165910,0.87947692,121750.0,121740.0,0.03273077]
[1760087169877,1.20050697,121750.0,121740.0,0.00015077]
[1760087170099,1.51589932,121750.0,121740.0,0.00015077]
[1760087170321,3.74968032,121750.0,121740.0,0.00015077]
[1760087170541,4.04968032,121750.0,121740.0,0.00015077]
[1760087171214,4.07437453,121750.0,121740.0,0.00015077]
[1760087177088,0.00337023,121750.0,121740.0,0.62442904]
[1760087177558,0.00337023,121750.0,121740.0,0.54544886]
[1760087178443,0.00237023,121750.0,121740.0,0.54544886]
[1760087178657,0.00237023,121750.0,121740.0,0.86647241]
[1760087178883,0.00337023,121750.0,121740.0,0.87458764]
[1760087179095,0.00337023,121750.0,121740.0,0.86647241]
[1760087179564,0.00769909,121770.0,121760.0,0.16425755]
[1760087179794,0.16424473,121770.0,121760.0,0.19683755]
[1760087180022,0.17194382,121770.0,121760.0,0.22424755]
[1760087180255,0.17296834,121770.0,121760.0,0.22424755]
[1760087181200,0.49399189,121770.0,121760.0,0.19683755]
[1760087181365,0.49399189,121770.0,121760.0,0.22424755]
[1760087181590,0.49399189,121770.0,121760.0,0.05999]
[1760087184588,0.49399189,121770.0,121760.0,0.22424755]
[1760087185000,0.49399189,121770.0,121760.0,0.05999]
[1760087185195,0.87711395,121770.0,121760.0,0.03258]
[1760087186043,0.55608973,121770.0,121760.0,0.05999]
[1760087186407,0.87711328,121770.0,121760.0,0.22424755]
[1760087187135,0.86941419,121770.0,121760.0,0.22424755]
[1760087187339,0.86941419,121770.0,121760.0,0.05999]
[1760087187546,0.54839064,121770.0,121760.0,0.05999]
[1760087187984,0.86941419,121770.0,121760.0,0.05999]
[1760087188220,0.54839064,121770.0,121760.0,0.07641575]
[1760087188436,0.86941419,121770.0,121760.0,0.07641575]
[1760087188735,0.86941419,121770.0,121760.0,0.05999]
[1760087190830,0.86941419,121770.0,121760.0,0.03258]
[1760087191261,0.16425755,121760.0,121750.0,0.04127]
[1760087191474,0.16425755,121760.0,121750.0,0.01386]
[1760087191475,0.80630465,121760.0,121750.0,0.01386]
[1760087191690,0.80681695,121760.0,121750.0,0.03258]
[1760087192078,0.86681695,121760.0,121750.0,0.03258]
[1760087192526,0.94993901,121760.0,121750.0,0.03258]
[1760087193150,0.16427104,121750.0,121740.0,0.01401077]
[1760087193358,0.48529459,121750.0,121740.0,0.01401077]
[1760087193567,0.48529459,121750.0,121740.0,0.06061077]
[1760087193774,0.48529459,121750.0,121740.0,0.22489531]
[1760087195754,0.48529459,121750.0,121740.0,0.06061077]
[1760087197052,0.48529459,121750.0,121740.0,0.03313077]
[1760087197282,0.78529459,121750.0,121740.0,0.03313077]
[1760087197500,0.46427104,121750.0,121740.0,0.03313077]
[1760087197727,0.78529459,121750.0,121740.0,0.06061077]
[1760087199018,0.86841665,121750.0,121740.0,0.03313077]
[1760087199711,1.1894402,121750.0,121740.0,0.03313077]
[1760087199970,1.5294402,121750.0,121740.0,0.00015077]
[1760087200401,1.61546245,121750.0,121740.0,0.00015077]
[1760087200827,1.55413429,121750.0,121740.0,0.00015077]
[1760087204317,0.97443779,121750.0,121740.0,0.00015077]
[1760087204541,1.29546134,121750.0,121740.0,0.03371077]
[1760087204774,1.29546134,121750.0,121740.0,0.06119077]
[1760087205199,1.29546134,121750.0,121740.0,0.03371077]
[1760087208048,1.29546134,121750.0,121740.0,0.06220077]
[1760087208256,1.29546134,121750.0,121740.0,0.03371077]
[1760087208923,1.23311074,121750.0,121740.0,0.03371077]
[1760087209145,0.91208719,121750.0,121740.0,0.06220077]
[1760087209353,1.23311074,121750.0,121740.0,0.06220077]
[1760087209580,1.34019358,121750.0,121740.0,0.03371077]
[1760087211128,1.34019358,121750.0,121740.0,0.00015077]
[1760087213918,1.40216846,121750.0,121740.0,0.00015077]
[1760087215714,0.97406207,121750.0,121740.0,0.00015077]
[1760087215932,1.40216846,121750.0,121740.0,0.00015077]
[1760087221786,1.40216846,121750.0,121740.0,0.01866077]
[1760087222003,1.40216846,121750.0,121740.0,0.00015077]
[1760087223345,0.97406207,121750.0,121740.0,0.00015077]
[1760087223786,1.40216846,121750.0,121740.0,0.00015077]
[1760087224009,0.97406207,121750.0,121740.0,0.00015077]
[1760087224223,1.40216846,121750.0,121740.0,0.00015077]
[1760087224430,1.40986728,121750.0,121740.0,0.00015077]
[1760087226636,0.98176089,121750.0,121740.0,0.01872077]
[1760087226864,1.40986728,121750.0,121740.0,0.00015077]
[1760087228415,1.42528014,121750.0,121740.0,0.00015077]
[1760087232477,0.98176089,121750.0,121740.0,0.03348077]
[1760087232636,0.98176089,121750.0,121740.0,0.06179077]
[1760087232979,1.40986728,121750.0,121740.0,0.06179077]
[1760087233849,0.75551497,121750.0,121740.0,0.22607531]
[1760087234073,0.11551497,121750.0,121740.0,0.22607531]
[1760087234298,0.02469409,121750.0,121740.0,0.69474786]
[1760087234524,0.0605123,121760.0,121750.0,0.16427104]
[1760087234739,0.4005123,121760.0,121750.0,0.20734104]
[1760087234951,0.4005123,121760.0,121750.0,0.22591104]
[1760087235382,0.0605123,121760.0,121750.0,0.22591104]
[1760087236073,0.22476985,121760.0,121750.0,0.22591104]
[1760087237068,0.22476985,121760.0,121750.0,0.42591104]
[1760087238373,0.7359983,121760.0,121750.0,0.23333]
[1760087238661,1.0359983,121760.0,121750.0,0.2]
[1760087239819,1.0359983,121760.0,121750.0,0.21857]
[1760087240682,1.0359983,121760.0,121750.0,0.26164]
[1760087240907,0.30789191,121760.0,121750.0,0.26164]
[1760087241123,0.30789191,121760.0,121750.0,0.42591104]
[1760087241759,0.30789191,121760.0,121750.0,0.4864216]
[1760087241994,0.14363436,121760.0,121750.0,0.4864216]
[1760087242219,0.30789191,121760.0,121750.0,0.42591104]
[1760087242876,0.30789191,121760.0,121750.0,0.26164]
[1760087243111,0.7359983,121760.0,121750.0,0.23333]
[1760087244444,0.7359983,121760.0,121750.0,0.42591104]
[1760087245074,0.7359983,121760.0,121750.0,0.26164]
[1760087245288,0.30789191,121760.0,121750.0,0.26164]
[1760087248311,0.7359983,121760.0,121750.0,0.26164]
[1760087248551,0.30789191,121760.0,121750.0,0.26164]
[1760087250786,0.30789191,121760.0,121750.0,0.42591104]
[1760087251012,0.30554791,121760.0,121750.0,0.42591104]
[1760087251233,0.30554791,121760.0,121750.0,0.4864216]
[1760087252147,0.30554791,121760.0,121750.0,0.42591104]
[1760087253858,0.0581683,121760.0,121750.0,0.42591104]
[1760087255356,0.81245626,121770.0,121760.0,0.16425755]
[1760087255571,0.89557832,121770.0,121760.0,0.2289433]
[1760087255796,0.89557832,121770.0,121760.0,0.22666755]
[1760087256044,0.89609056,121770.0,121760.0,0.22666755]
[1760087259125,0.8047563,121770.0,121760.0,0.22666755]
[1760087260839,0.4647563,121770.0,121760.0,0.22666755]
[1760087264221,0.89286269,121770.0,121760.0,0.06241]
[1760087264884,0.59286269,121770.0,121760.0,0.06241]
[1760087266955,0.1647563,121770.0,121760.0,0.22666755]
[1760087267167,0.59286269,121770.0,121760.0,0.22666755]
[1760087267379,0.59286269,121770.0,121760.0,0.06241]
[1760087267829,0.59286269,121770.0,121760.0,0.03364]
[1760087268048,0.59286269,121770.0,121760.0,0.06299]
[1760087269643,0.1647563,121770.0,121760.0,0.06299]
[1760087269932,0.59286269,121770.0,121760.0,0.06299]
[1760087271430,0.59286269,121770.0,121760.0,0.03364]
[1760087271641,0.48571807,121770.0,121760.0,0.03364]
[1760087272080,0.48571807,121770.0,121760.0,0.06299]
[1760087273116,0.56884013,121770.0,121760.0,0.06299]
[1760087273317,0.16425755,121760.0,121750.0,0.21476]
[1760087273533,0.88930315,121760.0,121750.0,0.23433]
[1760087273942,1.83700536,121760.0,121750.0,0.2]
[1760087274336,1.89700536,121760.0,121750.0,0.2]
[1760087275373,1.93709752,121760.0,121750.0,0.2]
[1760087276375,1.92169703,121760.0,121750.0,0.2]
[1760087276629,1.97378161,121760.0,121750.0,0.2]
[1760087276841,1.92169703,121760.0,121750.0,0.2]
[1760087277827,0.97977349,121760.0,121750.0,0.21957]
[1760087278082,1.30073032,121760.0,121750.0,0.26423]
[1760087278296,1.29303305,121760.0,121750.0,0.26423]
[1760087279601,1.29303305,121760.0,121750.0,0.23488]
[1760087279808,1.30072949,121760.0,121750.0,0.23488]
[1760087281105,1.62169126,121760.0,121750.0,0.23488]
[1760087282798,1.61399482,121760.0,121750.0,0.23488]
[1760087283674,1.61399482,121760.0,121750.0,0.21531]
[1760087284819,1.61399482,121760.0,121750.0,0.23464]
[1760087286148,1.61399482,121760.0,121750.0,0.2]
[1760087287408,1.61399482,121760.0,121750.0,0.21933]
[1760087288678,1.61399482,121760.0,121750.0,0.2]
[1760087288910,0.97207128,121760.0,121750.0,0.2]
[1760087289242,1.61399482,121760.0,121750.0,0.2]
[1760087290084,1.91399482,121760.0,121750.0,0.2]
[1760087294015,1.27207128,121760.0,121750.0,0.2]
[1760087294235,1.91399482,121760.0,121750.0,0.2]
[1760087295340,1.92168953,121760.0,121750.0,0.2]
[1760087302119,1.93709652,121760.0,121750.0,0.2]
[1760087303835,1.93709652,121760.0,121750.0,0.21933]
[1760087304257,1.93709652,121760.0,121750.0,0.2]
[1760087306166,1.75243853,121760.0,121750.0,0.2]
[1760087306370,1.91669608,121760.0,121750.0,0.2]
[1760087307057,1.91670552,121760.0,121750.0,0.2]
[1760087309427,1.91670705,121760.0,121750.0,0.2]
[1760087309877,4.53620482,121760.0,121750.0,0.2]
[1760087310259,4.21524305,121760.0,121750.0,0.2]
[1760087311482,4.53620482,121760.0,121750.0,0.2]
[1760087312783,7.23766882,121760.0,121750.0,0.2]
[1760087312970,7.29586639,121760.0,121750.0,0.2]
[1760087313754,2.29586639,121760.0,121750.0,0.2]
[1760087313960,7.26782072,121760.0,121750.0,0.2]
[1760087315080,2.26782072,121760.0,121750.0,0.2]
[1760087315294,7.26782072,121760.0,121750.0,0.2]
[1760087315716,7.26782775,121760.0,121750.0,0.2]
[1760087315916,2.26782775,121760.0,121750.0,0.2]
[1760087316143,7.26782775,121760.0,121750.0,0.2]
[1760087317078,7.26782775,121760.0,121750.0,0.190199]
[1760087317352,2.26782775,121760.0,121750.0,0.190199]
[1760087317586,7.26782775,121760.0,121750.0,0.190199]
[1760087317787,2.26782775,121760.0,121750.0,0.190199]
[1760087317916,7.26782775,121760.0,121750.0,0.190199]
[1760087319399,2.26782775,121760.0,121750.0,0.190199]
[1760087319585,7.26782775,121760.0,121750.0,0.190199]
[1760087320172,0.83442294,121750.0,121740.0,0.00152096]
[1760087320390,6.93159568,121750.0,121740.0,0.00152096]
[1760087320861,6.95629318,121750.0,121740.0,0.00152096]
[1760087321474,1.95629318,121750.0,121740.0,0.00152096]
[1760087321697,6.95629318,121750.0,121740.0,0.00152096]
[1760087323325,7.01645107,121750.0,121740.0,0.00152096]
[1760087324198,2.01645107,121750.0,121740.0,0.00152096]
[1760087324400,7.01645107,121750.0,121740.0,0.00152096]
[1760087324767,7.01745107,121750.0,121740.0,0.00152096]
[1760087325375,2.01945107,121750.0,121740.0,0.00152096]
[1760087325618,7.01945107,121750.0,121740.0,0.00152096]
[1760087326221,2.01945107,121750.0,121740.0,0.00152096]
[1760087326419,7.01945107,121750.0,121740.0,0.00152096]
[1760087327370,2.01945107,121750.0,121740.0,0.00152096]
[1760087327587,7.01945107,121750.0,121740.0,0.00152096]
[1760087327809,2.01943605,121750.0,121740.0,0.00152096]
[1760087328030,7.01943605,121750.0,121740.0,0.00152096]
[1760087328449,2.01943605,121750.0,121740.0,0.00152096]
[1760087328654,7.01943605,121750.0,121740.0,0.00152096]
[1760087329679,2.01943605,121750.0,121740.0,0.00152096]
[1760087330102,7.01943605,121750.0,121740.0,0.00152096]
[1760087330315,7.26585605,121750.0,121740.0,0.00152096]
[1760087331191,7.24275137,121750.0,121740.0,0.00152096]
[1760087331395,0.16432503,121710.0,121700.0,0.01492]
[1760087331600,0.67589232,121710.0,121700.0,0.0004]
[1760087332634,0.97589232,121710.0,121700.0,0.0004]
[1760087335479,1.03899662,121710.0,121700.0,0.0004]
[1760087335686,1.04719067,121710.0,121700.0,0.0004]
[1760087336786,1.10719067,121710.0,121700.0,0.0004]
[1760087336998,1.10719067,121710.0,121700.0,0.00245037]
[1760087339936,0.67879563,121710.0,121700.0,0.02255037]
[1760087340212,1.10719067,121710.0,121700.0,0.02255037]
[1760087342978,1.13189187,121710.0,121700.0,0.02255037]
[1760087343618,1.13189187,121710.0,121700.0,0.00245037]
[1760087344879,0.17188816,121700.0,121690.0,0.01452]
[1760087345302,0.17188816,121700.0,121690.0,0.03487]
[1760087347002,0.68340526,121700.0,121690.0,0.03487]
[1760087350601,0.68340526,121700.0,121690.0,0.03538272]
[1760087352454,0.68340526,121700.0,121690.0,0.01503272]
[1760087353115,0.68340526,121700.0,121690.0,0.03538272]
[1760087353486,0.25501022,121700.0,121690.0,0.06435272]
[1760087353711,0.25501022,121700.0,121690.0,0.50918296]
[1760087353712,0.00754963,121700.0,121690.0,0.50918296]
[1760087353867,0.17188816,121700.0,121690.0,0.6570998]
[1760087354521,0.17188816,121700.0,121690.0,0.22870476]
[1760087356845,0.91105205,121710.0,121690.0,0.22870476]
[1760087357088,1.00187695,121710.0,121700.0,0.04399]
[1760087357312,1.00187695,121710.0,121700.0,0.06434]
[1760087359263,0.24907642,121710.0,121700.0,0.26948486]
[1760087359489,0.24907642,121710.0,121700.0,0.25305101]
[1760087359999,0.24907642,121710.0,121700.0,0.22867853]
[1760087360459,0.08475139,121710.0,121700.0,0.22867853]
[1760087361120,0.24907642,121710.0,121700.0,0.22867853]
[1760087363126,0.08475139,121710.0,121700.0,0.22867853]
[1760087363348,0.22437522,121710.0,121700.0,0.22867853]
[1760087364598,0.06005019,121710.0,121700.0,0.65707357]
[1760087364814,0.06005019,121710.0,121700.0,0.22867853]